bitfinex/quotes_SOLUSD_20220228
["timestamp","ask_amount","ask_price","bid_price","bid_amount"]
[1646075828970,2.826,96.418,96.304,24.7599]
[1646075829166,28.65434288,96.418,96.304,24.7599]
[1646075829571,25.74049943,96.417,96.304,24.7599]
[1646075829767,1.3634579,96.416,96.304,24.7599]
[1646075830568,27.12551114,96.415,96.304,24.7599]
[1646075830769,1.58125085,96.414,96.304,24.7599]
[1646075831067,12.49,96.41,96.304,24.7599]
[1646075831268,1.73754032,96.409,96.304,24.7599]
[1646075831671,1.73754032,96.409,96.305,104.0]
[1646075832067,1.73754032,96.409,96.304,24.7599]
[1646075832467,24.30051114,96.408,96.304,24.7599]
[1646075832669,1.81100834,96.407,96.304,24.7599]
[1646075833070,1.82045542,96.405,96.304,24.7599]
[1646075833471,1.55748696,96.404,96.304,24.7599]
[1646075833771,12.49,96.39,96.304,24.7599]
[1646075833970,59.5395946,96.389,96.304,24.7599]
[1646075834172,1.62944662,96.388,96.304,24.7599]
[1646075834969,25.92995776,96.388,96.242,2.43505108]
[1646075835170,26.26123692,96.387,96.257,47.8186]
[1646075835370,1.7638585,96.386,96.257,47.8186]
[1646075835571,1.77728501,96.385,96.257,47.8186]
[1646075835773,2.841,96.384,96.257,47.8186]
[1646075835974,27.14151114,96.384,96.257,47.8186]
[1646075836271,50.64817406,96.369,96.257,47.8186]
[1646075836471,1.67183823,96.368,96.257,47.8186]
[1646075836674,25.97234937,96.368,96.257,47.8186]
[1646075836872,25.78138672,96.367,96.257,47.8186]
[1646075837070,1.83135162,96.366,96.257,47.8186]
[1646075837271,26.13186276,96.366,96.257,47.8186]
[1646075837471,26.11592908,96.365,96.257,47.8186]
[1646075837671,12.49,96.35,96.257,47.8186]
[1646075837871,48.92421077,96.349,96.257,47.8186]
[1646075838071,1.56604507,96.348,96.257,47.8186]
[1646075843679,14.01045533,96.347,96.257,47.8186]
[1646075843878,1.63973994,96.346,96.257,47.8186]
[1646075844282,24.30051114,96.345,96.257,47.8186]
[1646075844578,51.8231827,96.329,96.257,47.8186]
[1646075844779,1.65596173,96.328,96.257,47.8186]
[1646075845179,24.30051114,96.327,96.257,47.8186]
[1646075845480,1.411709,96.326,96.257,47.8186]
[1646075845679,1.411709,96.326,96.212,2.29691551]
[1646075845879,1.411709,96.326,96.213,47.7567]
[1646075846681,24.30051114,96.325,96.213,47.7567]
[1646075846884,1.6220603,96.324,96.213,47.7567]
[1646075847081,12.49,96.31,96.213,47.7567]
[1646075847287,46.58125649,96.309,96.213,47.7567]
[1646075847481,1.62001378,96.308,96.213,47.7567]
[1646075850385,44.93945986,96.309,96.213,47.7567]
[1646075850584,44.93945986,96.309,96.214,2.48487746]
[1646075850784,44.93945986,96.309,96.213,47.7567]
[1646075850984,44.93945986,96.309,96.214,2.52644558]
[1646075851185,44.93945986,96.309,96.213,47.7567]
[1646075851788,1.37107846,96.308,96.213,47.7567]
[1646075854288,44.93945986,96.309,96.213,47.7567]
[1646075856998,1.43385457,96.308,96.213,47.7567]
[1646075858998,1.43385457,96.308,96.214,104.0]
[1646075859298,2.803,96.322,96.215,2.44868561]
[1646075859501,23.4279,96.323,96.215,2.44868561]
[1646075859897,1.37306851,96.333,96.215,2.44868561]
[1646075860298,53.82825739,96.332,96.215,2.44868561]
[1646075860897,53.82825739,96.332,96.216,4.154]
[1646075861098,53.82825739,96.332,96.215,2.44868561]
[1646075861403,1.52507572,96.331,96.213,47.7567]
[1646075861599,12.49,96.32,96.213,47.7567]
[1646075861898,1.38854126,96.319,96.213,47.7567]
[1646075862617,25.6890524,96.319,96.213,47.7567]
[1646075862820,1.69275454,96.318,96.213,47.7567]
[1646075863319,1.51222261,96.317,96.213,47.7567]
[1646075864118,62.31,96.315,96.213,47.7567]
[1646075864321,12.49,96.3,96.213,47.7567]
[1646075864519,47.8120672,96.298,96.213,47.7567]
[1646075864821,1.59180162,96.297,96.213,47.7567]
[1646075865021,25.89231276,96.297,96.164,15.6272]
[1646075865219,28.70325778,96.296,96.166,50.1679]
[1646075865421,1.80088419,96.295,96.166,50.1679]
[1646075865619,2.867,96.294,96.166,50.1679]
[1646075865819,12.49,96.28,96.166,50.1679]
[1646075866021,1.86041516,96.279,96.166,50.1679]
[1646075866621,23.9113,96.278,96.166,50.1679]
[1646075866820,1.58534773,96.277,96.166,50.1679]
[1646075867020,25.88585887,96.277,96.166,50.1679]
[1646075867219,1.58534773,96.277,96.166,50.1679]
[1646075867424,25.77438932,96.276,96.166,50.1679]
[1646075867622,1.50804176,96.275,96.166,50.1679]
[1646075867822,2.829,96.274,96.166,50.1679]
[1646075868022,12.49,96.26,96.166,50.1679]
[1646075868221,58.82198141,96.259,96.166,50.1679]
[1646075868421,1.6061993,96.258,96.166,50.1679]
[1646075870923,24.30051114,96.257,96.166,4.155]
[1646075871226,1.55035842,96.255,96.166,4.155]
[1646075871425,12.49,96.24,96.166,4.155]
[1646075871626,1.5113092,96.239,96.166,4.155]
[1646075871826,25.81182034,96.239,96.166,4.155]
[1646075872025,25.8158006,96.238,96.166,4.155]
[1646075872226,1.71237375,96.237,96.166,4.155]
[1646075872426,1.83191429,96.236,96.166,4.155]
[1646075873226,1.83191429,96.236,96.116,49.6616]
[1646075873427,24.7739,96.235,96.116,49.6616]
[1646075873627,12.49,96.22,96.116,49.6616]
[1646075873829,53.47731574,96.219,96.116,49.6616]
[1646075874026,1.69240227,96.218,96.116,49.6616]
[1646075874627,76.01961699,96.219,96.116,52.30451736]
[1646075874628,51.71910585,96.219,96.116,52.30451736]
[1646075874830,51.71910585,96.219,96.117,2.83670468]
[1646075875028,51.71910585,96.219,96.117,106.83670468]
[1646075875231,51.71910585,96.219,96.118,2.97990726]
[1646075878835,51.71910585,96.219,96.116,49.6616]
[1646075880335,76.01961699,96.219,96.116,49.6616]
[1646075880535,1.42833781,96.218,96.116,49.6616]
[1646075880932,24.30051114,96.217,96.116,49.6616]
[1646075881132,1.82775231,96.216,96.116,49.6616]
[1646075881534,24.30051114,96.217,96.116,49.6616]
[1646075881535,63.99173608,96.214,96.116,49.6616]
[1646075881734,1.80661553,96.213,96.116,49.6616]
[1646075881934,1.65336091,96.199,96.116,49.6616]
[1646075882135,10.30336091,96.199,96.063,15.9786]
[1646075882335,10.30336091,96.199,96.095,48.0505]
[1646075882536,1.47144742,96.197,96.095,48.0505]
[1646075882935,1.76513602,96.195,96.095,48.0505]
[1646075883138,12.49,96.18,96.095,48.0505]
[1646075883336,56.83042766,96.179,96.095,48.0505]
[1646075883536,1.4099861,96.178,96.095,48.0505]
[1646075885438,55.34365212,96.179,96.095,48.0505]
[1646075886941,2.785,96.178,96.095,48.0505]
[1646075887739,58.08565212,96.179,96.095,48.0505]
[1646075888040,2.742,96.179,96.095,48.0505]
[1646075888342,2.742,96.179,96.096,129.93111591]
[1646075888545,12.49,96.23,96.1,12.49]
[1646075888739,1.46902342,96.239,96.101,104.0]
[1646075889039,12.49,96.25,96.105,104.0]
[1646075889240,2.615,96.254,96.121,104.0]
[1646075889439,1.84235909,96.253,96.131,104.0]
[1646075889639,1.84235909,96.253,96.132,2.52635939]
[1646075890439,1.84235909,96.253,96.133,104.0]
[1646075891140,45.90032574,96.231,96.133,104.0]
[1646075891438,45.90032574,96.231,96.132,2.52635939]
[1646075892841,45.90032574,96.231,96.131,104.0]
[1646075893043,1.84235909,96.253,96.131,104.0]
[1646075893241,2.787,96.257,96.137,166.31]
[1646075893445,2.787,96.257,96.15,12.49]
[1646075893644,2.787,96.257,96.152,3.05887358]
[1646075894142,57.66452969,96.256,96.151,22.5266]
[1646075894343,1.51689486,96.255,96.151,22.5266]
[1646075896352,57.66452969,96.256,96.152,104.0]
[1646075896550,57.66452969,96.256,96.153,2.9434399]
[1646075896852,4.72484966,96.277,96.154,104.0]
[1646075897150,4.72484966,96.277,96.158,104.0]
[1646075897350,2.871,96.277,96.161,104.0]
[1646075897551,2.871,96.277,96.162,2.80195548]
[1646075897749,45.45060358,96.276,96.162,2.80195548]
[1646075897949,45.45060358,96.276,96.163,2.74678921]
[1646075898151,45.45060358,96.276,96.165,104.0]
[1646075898350,45.45060358,96.276,96.17,12.49]
[1646075899351,1.4612094,96.275,96.17,12.49]
[1646075900655,45.45060358,96.276,96.17,12.49]
[1646075900955,45.45060358,96.276,96.171,2.62885514]
[1646075901160,1.68060728,96.275,96.171,106.62885514]
[1646075903674,1.68060728,96.275,96.171,121.93845514]
[1646075904772,1.68060728,96.275,96.171,2.62885514]
[1646075904973,1.68060728,96.275,96.164,47.6509]
[1646075905572,2.828,96.274,96.164,47.6509]
[1646075905774,12.49,96.27,96.164,47.6509]
[1646075905976,1.70208406,96.269,96.164,47.6509]
[1646075906374,45.45060358,96.276,96.175,104.0]
[1646075906577,45.45060358,96.276,96.181,104.0]
[1646075906779,45.45060358,96.276,96.182,2.29024081]
[1646075907175,1.48031386,96.301,96.182,2.29024081]
[1646075907375,2.826,96.309,96.186,62.31]
[1646075907577,2.826,96.309,96.185,104.0]
[1646075907578,2.826,96.309,96.201,104.0]
[1646075907778,45.9258,96.318,96.211,104.0]
[1646075907977,45.9258,96.318,96.212,2.98132528]
[1646075908177,46.60915378,96.317,96.212,2.98132528]
[1646075909379,46.60915378,96.317,96.217,104.0]
[1646075909579,46.60915378,96.317,96.221,104.0]
[1646075909778,46.60915378,96.317,96.222,2.94789951]
[1646075909981,4.32068837,96.339,96.224,62.31]
[1646075910180,2.821,96.339,96.228,62.31]
[1646075910382,2.82,96.358,96.241,104.0]
[1646075910581,1.3897012,96.379,96.25,12.49]
[1646075910786,1.57097558,96.378,96.25,12.49]
[1646075910982,54.48030083,96.376,96.25,12.49]
[1646075911183,4.50257258,96.375,96.25,12.49]
[1646075911386,22.4455956,96.375,96.25,12.49]
[1646075911586,81.95637029,96.374,96.235,23.6144]
[1646075911785,12.49,96.36,96.235,23.6144]
[1646075911984,2.828,96.359,96.235,23.6144]
[1646075912184,4.62503386,96.359,96.235,23.6144]
[1646075912585,27.86733386,96.359,96.235,23.6144]
[1646075912786,1.57572715,96.358,96.235,23.6144]
[1646075912985,2.832,96.357,96.235,23.6144]
[1646075913185,1.57572715,96.358,96.235,23.6144]
[1646075914188,1.57572715,96.358,96.236,104.0]
[1646075914788,1.57572715,96.358,96.237,2.57816356]
[1646075914986,1.57572715,96.358,96.236,104.0]
[1646075915187,1.57572715,96.358,96.235,23.6144]
[1646075917691,2.87,96.357,96.235,23.6144]
[1646075917988,1.57572715,96.358,96.235,23.6144]
[1646075918789,1.57572715,96.358,96.236,104.0]
[1646075919591,1.57572715,96.358,96.235,23.6144]
[1646075925498,1.57572715,96.358,96.236,104.0]
[1646075925699,1.57572715,96.358,96.241,104.0]
[1646075925901,1.57572715,96.358,96.242,2.34448204]
[1646075926501,1.51300796,96.375,96.245,104.0]
[1646075926705,1.51300796,96.375,96.261,104.0]
[1646075928103,1.51300796,96.375,96.263,104.0]
[1646075930126,1.51300796,96.375,96.265,104.0]
[1646075930328,1.51300796,96.375,96.264,62.31]
[1646075930329,23.5403,96.379,96.268,2.8298857]
[1646075930525,1.6904501,96.386,96.272,2.32308401]
[1646075930724,2.828,96.391,96.272,2.32308401]
[1646075930725,1.69266837,96.385,96.272,2.32308401]
[1646075931124,1.8617342,96.375,96.271,104.0]
[1646075931526,1.8617342,96.375,96.27,12.49]
[1646075934328,1.8617342,96.375,96.262,46.3319]
[1646075934527,2.829,96.374,96.263,104.0]
[1646075934730,1.8617342,96.375,96.263,104.0]
[1646075934931,1.8617342,96.375,96.262,46.3319]
[1646075935329,4.6927342,96.375,96.262,46.3319]
[1646075936331,23.0972,96.374,96.262,46.3319]
[1646075936531,1.656664,96.373,96.262,46.3319]
[1646075936730,1.656664,96.373,96.263,104.0]
[1646075937535,1.656664,96.373,96.262,46.3319]
[1646075937732,1.656664,96.373,96.263,104.0]
[1646075942939,1.656664,96.373,96.262,46.3319]
[1646075943142,12.49,96.37,96.262,46.3319]
[1646075943541,1.80142264,96.369,96.262,46.3319]
[1646075944546,1.80142264,96.369,96.263,104.0]
[1646075944746,1.80142264,96.369,96.263,106.74678921]
[1646075945146,1.80142264,96.369,96.264,2.74678921]
[1646075945647,1.80142264,96.369,96.265,104.0]
[1646075945847,1.80142264,96.369,96.271,104.0]
[1646075948848,1.80142264,96.369,96.262,46.3319]
[1646075950748,1.80142264,96.369,96.263,104.0]
[1646075950947,23.0972,96.374,96.267,166.31]
[1646075951148,55.81869035,96.376,96.281,104.0]
[1646075951349,55.81869035,96.376,96.283,104.0]
[1646075951749,55.81869035,96.376,96.282,24.4442]
[1646075952850,1.71197493,96.375,96.282,24.4442]
[1646075954055,55.81869035,96.376,96.282,24.4442]
[1646075954056,55.81869035,96.376,96.283,107.06823154]
[1646075954255,55.81869035,96.376,96.284,2.62078185]
[1646075954454,54.48030083,96.376,96.287,104.0]
[1646075955557,54.48030083,96.376,96.284,2.62078185]
[1646075958958,6.0,96.389,96.284,2.62078185]
[1646075959160,6.0,96.389,96.286,104.0]
[1646075959358,6.0,96.389,96.29,12.49]
[1646075959557,6.0,96.389,96.291,104.0]
[1646075960058,43.0145092,96.388,96.291,104.0]
[1646075961660,1.85873218,96.387,96.291,104.0]
[1646075961861,1.85873218,96.387,96.29,12.49]
[1646075962060,43.0145092,96.388,96.291,104.0]
[1646075962562,1.76595766,96.387,96.291,104.0]
[1646075968191,43.0145092,96.388,96.297,166.31]
[1646075968389,43.0145092,96.388,96.297,104.0]
[1646075968590,43.0145092,96.388,96.301,104.0]
[1646075968789,43.0145092,96.388,96.303,104.0]
[1646075973994,43.0145092,96.388,96.302,24.0419]
[1646075974698,43.0145092,96.388,96.303,104.0]
[1646075979901,1.55550609,96.387,96.303,104.0]
[1646075982503,6.0,96.389,96.303,104.0]
[1646075982705,6.0,96.389,96.307,104.0]
[1646075982906,6.0,96.389,96.321,104.0]
[1646075983104,2.829,96.435,96.323,104.0]
[1646075983105,27.23114166,96.435,96.323,104.0]
[1646075983305,1.53023096,96.434,96.327,166.31]
[1646075983504,1.53023096,96.434,96.341,104.0]
[1646075983707,1.53023096,96.434,96.343,104.0]
[1646075983904,1.53023096,96.434,96.343,111.24]
[1646075984805,1.53023096,96.434,96.343,7.24]
[1646075985005,1.53023096,96.434,96.321,22.08545218]
[1646075985006,1.53023096,96.434,96.321,4.149]
[1646075985205,12.49,96.42,96.281,46.2226]
[1646075985406,1.36947158,96.419,96.281,46.2226]
[1646075985606,49.0349,96.418,96.281,46.2226]
[1646075985807,1.8294206,96.417,96.281,46.2226]
[1646075986009,1.8294206,96.417,96.282,104.0]
[1646075986211,10.04049392,96.416,96.282,104.0]
[1646075986409,1.5586117,96.415,96.282,104.0]
[1646075986609,26.58086729,96.415,96.282,104.0]
[1646075986809,49.0349,96.418,96.282,104.0]
[1646075986810,1.76535805,96.414,96.282,104.0]
[1646075987010,12.49,96.41,96.282,104.0]
[1646075987209,1.5449824,96.409,96.282,104.0]
[1646075987410,48.9018694,96.408,96.282,104.0]
[1646075987610,1.60653246,96.407,96.282,104.0]
[1646075988010,1.47046164,96.405,96.282,104.0]
[1646075988411,1.79017221,96.403,96.282,104.0]
[1646075988610,1.79017221,96.403,96.283,4.151]
[1646075988814,1.62470836,96.401,96.283,4.151]
[1646075989012,1.69755534,96.399,96.283,4.151]
[1646075989413,25.02225559,96.398,96.283,4.151]
[1646075989615,1.7439145,96.397,96.283,4.151]
[1646075990012,25.02225559,96.396,96.283,4.151]
[1646075990212,1.76252105,96.395,96.283,4.151]
[1646075990413,1.47301167,96.393,96.283,4.151]
[1646075990815,25.02225559,96.392,96.283,4.151]
[1646075991114,1.53328233,96.391,96.283,4.151]
[1646075991513,25.02225559,96.39,96.283,4.151]
[1646075991715,1.4345771,96.389,96.283,4.151]
[1646075993416,1.4345771,96.389,96.285,104.0]
[1646075993616,22.8633,96.394,96.284,6.0]
[1646075993617,22.8633,96.394,96.287,166.31]
[1646075993924,1.73388316,96.393,96.301,104.0]
[1646075994115,1.73388316,96.393,96.303,104.0]
[1646075994919,1.73388316,96.393,96.302,23.0498]
[1646075999226,1.73388316,96.393,96.303,104.0]
[1646075999421,1.73388316,96.393,96.305,104.0]
[1646076000621,1.73388316,96.393,96.304,6.0]
[1646076000821,1.73388316,96.393,96.302,23.0498]
[1646076001324,1.73388316,96.393,96.303,104.0]
[1646076001521,1.73388316,96.393,96.303,110.0]
[1646076001725,1.73388316,96.393,96.303,6.0]
[1646076002021,1.38775961,96.407,96.302,23.0498]
[1646076002223,48.9018694,96.408,96.302,23.0498]
[1646076002224,1.66843715,96.405,96.302,23.0498]
[1646076002621,24.93541559,96.404,96.302,23.0498]
[1646076002823,1.6318557,96.403,96.302,23.0498]
[1646076003224,24.93541559,96.402,96.302,23.0498]
[1646076003622,1.5734342,96.401,96.302,23.0498]
[1646076004024,24.93541559,96.4,96.302,23.0498]
[1646076004225,1.82192718,96.399,96.302,23.0498]
[1646076004745,1.87327844,96.397,96.302,23.0498]
[1646076004926,12.49,96.39,96.302,23.0498]
[1646076005127,1.50083399,96.389,96.302,23.0498]
[1646076005328,26.43624958,96.389,96.302,23.0498]
[1646076005527,1.55786408,96.388,96.302,23.0498]
[1646076005728,26.49327967,96.388,96.283,4.151]
[1646076005928,50.40529827,96.387,96.284,23.1773]
[1646076006130,1.4002711,96.386,96.284,23.1773]
[1646076006328,26.33568669,96.386,96.284,23.1773]
[1646076006530,26.76847597,96.385,96.283,4.151]
[1646076006731,4.67165307,96.384,96.283,4.151]
[1646076006930,12.49,96.38,96.283,4.151]
[1646076007131,62.10870459,96.379,96.283,4.151]
[1646076007332,1.64261531,96.378,96.283,4.151]
[1646076007631,24.93541559,96.377,96.283,4.151]
[1646076007834,1.58793004,96.376,96.283,4.151]
[1646076008233,24.93541559,96.375,96.283,4.151]
[1646076008432,1.52071556,96.374,96.283,4.151]
[1646076008836,12.49,96.36,96.283,4.151]
[1646076009037,1.43737904,96.359,96.283,4.151]
[1646076009240,26.37279463,96.359,96.283,4.151]
[1646076009436,26.38242345,96.358,96.283,4.151]
[1646076009637,1.8044736,96.357,96.283,4.151]
[1646076009838,26.73988919,96.357,96.283,4.151]
[1646076010139,1.68032048,96.355,96.283,4.151]
[1646076010342,1.68032048,96.355,96.247,112.7]
[1646076010541,1.49199569,96.353,96.247,112.7]
[1646076010739,12.49,96.35,96.247,112.7]
[1646076010938,49.21240381,96.349,96.247,112.7]
[1646076011142,47.40100325,96.349,96.247,112.7]
[1646076011338,1.57499746,96.348,96.247,112.7]
[1646076012761,1.57499746,96.348,96.248,24.5363]
[1646076013464,1.66545713,96.347,96.247,112.7]
[1646076013863,1.79158742,96.345,96.247,112.7]
[1646076014064,12.49,96.34,96.247,112.7]
[1646076014264,1.74086314,96.339,96.247,112.7]
[1646076014664,23.923,96.338,96.247,112.7]
[1646076014865,1.59509114,96.337,96.247,112.7]
[1646076015167,88.84050673,96.337,96.247,112.7]
[1646076015368,1.86397764,96.336,96.187,112.7]
[1646076015566,1.65974026,96.334,96.188,23.1425]
[1646076015767,12.49,96.32,96.188,23.1425]
[1646076015968,24.0588,96.319,96.188,23.1425]
[1646076016166,47.00953937,96.318,96.188,23.1425]
[1646076016366,1.57991248,96.317,96.188,23.1425]
[1646076016567,2.828,96.316,96.188,23.1425]
[1646076016767,4.57835261,96.316,96.188,23.1425]
[1646076016970,29.25679493,96.316,96.188,23.1425]
[1646076017167,27.84386146,96.315,96.188,23.1425]
[1646076017369,12.49,96.3,96.188,23.1425]
[1646076017668,1.80258743,96.298,96.188,23.1425]
[1646076018567,26.42879493,96.297,96.188,23.1425]
[1646076018769,1.64067751,96.296,96.188,23.1425]
[1646076019271,1.64067751,96.296,96.19,2.70149679]
[1646076019869,1.64067751,96.296,96.191,104.0]
[1646076020773,1.64067751,96.296,96.193,104.0]
[1646076021172,2.873,96.316,96.2,62.31]
[1646076021370,2.873,96.316,96.21,12.49]
[1646076021571,2.873,96.316,96.221,104.0]
[1646076021772,2.873,96.316,96.224,2.98875965]
[1646076021975,2.873,96.316,96.222,46.8763]
[1646076022174,57.53203211,96.315,96.222,49.62308921]
[1646076022375,1.44499862,96.314,96.222,46.8763]
[1646076022775,1.84912309,96.313,96.222,46.8763]
[1646076029787,23.3901,96.314,96.222,46.8763]
[1646076030887,23.3901,96.314,96.223,6.0]
[1646076031905,23.3901,96.314,96.222,46.8763]
[1646076032409,1.41983593,96.313,96.222,46.8763]
[1646076032605,23.89011419,96.313,96.222,46.8763]
[1646076032808,24.08298293,96.312,96.222,46.8763]
[1646076033007,1.80218564,96.311,96.222,46.8763]
[1646076033207,24.2724639,96.311,96.222,46.8763]
[1646076033409,24.12230948,96.31,96.222,46.8763]
[1646076033607,1.67511058,96.309,96.222,46.8763]
[1646076035509,22.47027826,96.31,96.222,46.8763]
[1646076035709,1.81269433,96.313,96.222,46.8763]
[1646076035909,23.3901,96.314,96.222,46.8763]
[1646076036310,1.55980659,96.313,96.222,46.8763]
[1646076037111,23.3901,96.314,96.223,104.0]
[1646076037313,57.53203211,96.315,96.224,2.3386744]
[1646076040618,57.53203211,96.315,96.227,166.31]
[1646076041019,57.53203211,96.315,96.229,104.0]
[1646076041420,57.53203211,96.315,96.23,3.05494858]
[1646076043220,2.828,96.355,96.233,62.31]
[1646076043425,24.8393,96.366,96.24,104.0]
[1646076043620,2.827,96.389,96.261,62.31]
[1646076043822,1.75364828,96.399,96.27,12.49]
[1646076044022,24.8393,96.398,96.272,2.8968235]
[1646076044221,1.40605072,96.397,96.272,2.8968235]
[1646076044420,21.79632898,96.397,96.272,2.8968235]
[1646076044623,1.75885046,96.396,96.275,2.50106845]
[1646076044824,1.5283702,96.395,96.275,2.50106845]
[1646076045022,21.91864846,96.395,96.275,2.50106845]
[1646076045225,1.7753148,96.394,96.275,2.50106845]
[1646076045422,1.69573225,96.393,96.275,2.50106845]
[1646076045623,22.08601051,96.393,96.275,2.50106845]
[1646076045823,1.77478986,96.392,96.275,2.50106845]
[1646076046023,1.49938648,96.391,96.275,2.50106845]
[1646076046623,21.88966474,96.391,96.275,2.50106845]
[1646076047025,4.57322303,96.39,96.275,2.50106845]
[1646076047425,20.39027826,96.389,96.275,2.50106845]
[1646076047625,1.47218341,96.388,96.275,2.50106845]
[1646076048024,20.39027826,96.387,96.275,2.50106845]
[1646076048225,1.63383764,96.385,96.275,2.50106845]
[1646076048625,1.81880272,96.384,96.275,2.50106845]
[1646076049025,1.77441378,96.383,96.273,23.7332]
[1646076049324,12.49,96.38,96.273,23.7332]
[1646076049525,1.48448266,96.379,96.273,23.7332]
[1646076049726,20.39027826,96.379,96.273,23.7332]
[1646076049929,22.08892108,96.378,96.273,23.7332]
[1646076050127,1.4003342,96.377,96.273,23.7332]
[1646076050433,1.61682986,96.376,96.273,23.7332]
[1646076050628,1.37564176,96.375,96.273,23.7332]
[1646076050829,1.86974433,96.373,96.273,23.7332]
[1646076051433,12.49,96.36,96.273,23.7332]
[1646076051628,60.23578666,96.359,96.273,23.7332]
[1646076051829,1.53797225,96.358,96.273,23.7332]
[1646076052031,21.92825051,96.358,96.273,23.7332]
[1646076052230,1.86495839,96.357,96.273,23.7332]
[1646076052631,1.68979336,96.356,96.273,23.7332]
[1646076053832,1.66784203,96.358,96.273,23.7332]
[1646076057035,23.22827826,96.357,96.273,23.7332]
[1646076057253,1.47904639,96.356,96.273,23.7332]
[1646076057536,2.807,96.355,96.273,23.7332]
[1646076057735,25.0486647,96.355,96.273,23.7332]
[1646076057934,21.95513928,96.354,96.273,23.7332]
[1646076058139,12.49,96.35,96.273,23.7332]
[1646076058336,1.87490697,96.349,96.273,23.7332]
[1646076060036,1.87490697,96.349,96.262,24.129]
[1646076060239,1.87490697,96.349,96.263,22.8041]
[1646076067945,1.49817219,96.357,96.263,22.8041]
[1646076068545,21.88845045,96.357,96.263,22.8041]
[1646076068946,1.49938222,96.356,96.263,22.8041]
[1646076070248,20.39027826,96.355,96.263,22.8041]
[1646076070450,1.37732145,96.354,96.263,22.8041]
[1646076071259,1.37732145,96.354,96.264,104.0]
[1646076071453,1.37732145,96.354,96.264,6.42]
[1646076073469,24.7762,96.358,96.264,6.42]
[1646076073672,24.7762,96.358,96.265,104.0]
[1646076073872,24.7762,96.358,96.264,6.42]
[1646076074670,1.4101621,96.357,96.264,6.42]
[1646076076376,24.7762,96.358,96.265,104.0]
[1646076077574,24.7762,96.358,96.264,6.42]
[1646076078174,1.59916252,96.357,96.264,6.42]
[1646076080177,1.59916252,96.357,96.265,104.0]
[1646076080580,1.59916252,96.357,96.264,6.42]
[1646076080779,1.59916252,96.357,96.265,104.0]
[1646076081682,1.59916252,96.357,96.264,6.42]
[1646076082279,24.7762,96.358,96.264,6.42]
[1646076082779,24.7762,96.358,96.265,104.0]
[1646076082980,24.7762,96.358,96.266,104.0]
[1646076083379,24.7762,96.358,96.263,22.8041]
[1646076083978,24.7762,96.358,96.264,104.0]
[1646076084578,24.7762,96.358,96.263,22.8041]
[1646076084779,1.8253981,96.357,96.263,22.8041]
[1646076084978,1.8253981,96.357,96.264,104.0]
[1646076085781,1.8253981,96.357,96.263,22.8041]
[1646076086478,22.21567636,96.357,96.263,22.8041]
[1646076086679,1.68343582,96.356,96.263,22.8041]
[1646076088385,1.68343582,96.356,96.264,104.0]
[1646076088782,1.68343582,96.356,96.263,22.8041]
[1646076089182,1.68343582,96.356,96.264,104.0]
[1646076089486,1.68343582,96.356,96.263,22.8041]
[1646076090589,1.68343582,96.356,96.264,104.0]
[1646076091289,1.68343582,96.356,96.263,22.8041]
[1646076092290,1.68343582,96.356,96.264,104.0]
[1646076093992,55.71196611,96.355,96.264,104.0]
[1646076098521,55.71196611,96.355,96.263,22.8041]
[1646076098695,55.71196611,96.355,96.264,104.0]
[1646076098898,55.71196611,96.355,96.263,22.8041]
[1646076099901,55.71196611,96.355,96.265,2.93416822]
[1646076100299,24.7762,96.358,96.271,104.0]
[1646076101304,24.7762,96.358,96.27,12.49]
[1646076101703,24.7762,96.358,96.271,104.0]
[1646076102105,24.7762,96.358,96.27,12.49]
[1646076102708,2.869,96.385,96.271,104.0]
[1646076102906,28.09833287,96.428,96.281,104.0]
[1646076103104,1.79266085,96.427,96.291,104.0]